bitfinex/quotes_ETHUSD_20240821
["timestamp","ask_amount","ask_price","bid_price","bid_amount"]
[1724264396567,2.4794,2638.5,2638.4,8.17331098]
[1724264397127,2.4794,2638.5,2638.4,0.59297098]
[1724264398171,2.4794,2638.5,2638.1,3.79057]
[1724264398465,2.4794,2638.5,2638.2,0.59301731]
[1724264398673,2.4794,2638.5,2638.3,0.59301731]
[1724264398840,2.4794,2638.5,2638.1,3.79051]
[1724264399037,2.4794,2638.5,2638.2,0.59302892]
[1724264399222,2.4794,2638.5,2638.3,0.59302892]
[1724264399426,2.4794,2638.5,2638.1,3.79051]
[1724264399671,2.4794,2638.5,2638.2,0.59305076]
[1724264399971,2.4794,2638.5,2638.1,3.79051]
[1724264400167,2.4794,2638.5,2637.9,3.79082]
[1724264400168,3.106329,2638.5,2638.2,0.59306305]
[1724264400370,3.106329,2638.5,2637.9,3.79082]
[1724264400371,6.22765,2638.4,2637.9,3.79082]
[1724264400569,6.22765,2638.4,2637.7,3.7911]
[1724264400570,3.79036,2638.3,2637.7,3.79104]
[1724264400746,2.4374,2638.2,2637.8,4.38407736]
[1724264400943,2.4374,2638.2,2638.0,3.79073]
[1724264401336,2.4374,2638.2,2637.8,3.79089]
[1724264401531,2.4374,2638.2,2637.8,3.79103]
[1724264401731,2.4374,2638.2,2637.9,0.59312984]
[1724264401931,2.4374,2638.2,2637.8,3.79103]
[1724264402150,2.4374,2638.2,2637.9,0.59314107]
[1724264402349,2.4374,2638.2,2637.8,3.79096]
[1724264402694,2.3772,2638.1,2637.7,3.79116]
[1724264402828,2.3772,2638.1,2637.8,0.59313949]
[1724264403176,2.3772,2638.1,2637.8,3.79094]
[1724264403333,2.3772,2638.1,2637.9,3.79078]
[1724264403950,2.3772,2638.1,2638.0,7.5815]
[1724264405274,2.4197,2638.4,2638.3,3.79024]
[1724264406035,2.4197,2638.4,2638.3,7.58055]
[1724264406583,2.3313,2638.8,2638.5,3.79002]
[1724264406783,3.98725297,2638.8,2638.4,3.79016]
[1724264406987,7.77685297,2638.8,2638.3,3.79024]
[1724264407137,3.98725297,2638.8,2638.3,3.79024]
[1724264407679,3.98725297,2638.8,2638.4,3.7901]
[1724264407898,2.3313,2638.8,2638.6,3.78978]
[1724264408302,2.3313,2638.8,2638.7,3.78974]
[1724264408437,2.3313,2638.8,2638.7,7.57948]
[1724264408780,2.3313,2638.8,2638.7,3.78974]
[1724264409388,16.04868,2639.5,2638.5,3.79]
[1724264409389,2.4824,2639.2,2638.5,3.79]
[1724264409690,2.4824,2639.2,2638.9,3.78945]
[1724264409910,2.4824,2639.2,2638.8,3.78951]
[1724264410414,2.3981,2639.1,2638.8,3.78957]
[1724264410758,2.3981,2639.1,2638.6,3.7898]
[1724264410958,2.3981,2639.1,2638.1,7.66854]
[1724264411202,6.18743,2639.0,2638.4,3.79009]
[1724264411403,6.18743,2639.0,2637.9,6.24203422]
[1724264411404,3.79008,2638.5,2637.9,0.47435715]
[1724264411589,2.3981,2638.4,2637.9,4.26516715]
[1724264411796,2.3981,2638.4,2637.9,3.79075]
[1724264412160,2.3981,2638.4,2638.1,3.79049]
[1724264412507,2.3981,2638.4,2638.3,3.79031]
[1724264412709,2.3981,2638.4,2638.2,3.79035]
[1724264412906,2.3981,2638.4,2638.0,3.79068]
[1724264413208,2.3981,2638.4,2638.2,3.79044]
[1724264413501,2.3981,2638.4,2638.0,7.58128]
[1724264413703,2.3981,2638.4,2638.0,3.79061]
[1724264413875,2.3981,2638.4,2637.8,3.79091]
[1724264413876,2.2665,2638.3,2637.8,3.79091]
[1724264414472,2.3977,2638.2,2637.8,3.79091]
[1724264414809,2.3977,2638.2,2637.9,3.79079]
[1724264418819,2.3977,2638.2,2637.8,3.79091]
[1724264419118,2.4275,2638.1,2637.6,3.79124]
[1724264419419,3.428355,2638.1,2637.6,3.79124]
[1724264419571,3.428355,2638.1,2637.6,7.58248]
[1724264420011,3.428355,2638.1,2637.7,3.79116]
[1724264420825,2.285,2637.9,2637.5,3.79138]
[1724264420991,2.285,2637.7,2637.5,3.79138]
[1724264421314,2.285,2637.7,2637.6,3.79132]
[1724264422459,2.285,2637.7,2637.6,7.58264]
[1724264422800,2.285,2637.7,2637.6,3.79132]
[1724264423000,2.285,2637.7,2637.1,3.878]
[1724264423199,2.285,2637.7,2637.3,3.79171]
[1724264423440,2.285,2637.7,2637.2,3.79181]
[1724264423596,2.285,2637.7,2637.6,3.79132]
[1724264423802,2.285,2637.7,2637.6,7.58264]
[1724264425042,2.285,2637.7,2637.6,11.37396]
[1724264425243,2.474,2638.3,2638.1,3.79055]
[1724264425443,4.88996419,2638.3,2638.1,3.79055]
[1724264425601,2.474,2638.3,2638.1,3.79055]
[1724264426949,2.474,2638.3,2638.2,3.79046]
[1724264427302,2.474,2638.3,2638.2,7.58092]
[1724264427948,2.474,2638.3,2638.2,3.79046]
[1724264428701,2.474,2638.3,2638.1,3.7906]
[1724264429099,2.474,2638.3,2638.2,3.79046]
[1724264431433,2.474,2638.3,2638.0,7.58135]
[1724264432057,2.474,2638.3,2638.1,3.79057]
[1724264432970,2.474,2638.3,2638.0,3.79061]
[1724264432971,2.474,2638.3,2638.2,3.79046]
[1724264433272,2.2723,2638.6,2638.2,3.79046]
[1724264433568,2.2723,2638.6,2638.1,3.7906]
[1724264433864,2.2723,2638.6,2638.2,3.79044]
[1724264434616,2.3084,2638.5,2638.0,3.79066]
[1724264434821,2.3084,2638.3,2637.9,3.79088]
[1724264435062,2.3084,2638.3,2637.7,7.66907]
[1724264435063,2.3084,2638.3,2638.0,3.79062]
[1724264435433,2.3084,2638.3,2638.1,3.79058]
[1724264435821,2.3084,2638.3,2638.0,3.79062]
[1724264436022,2.3084,2638.3,2637.7,3.878]
[1724264436023,2.4351,2638.0,2637.3,3.79167]
[1724264436257,2.4351,2637.9,2637.5,3.7914]
[1724264436635,2.4351,2637.9,2637.6,3.7913]
[1724264436850,2.4351,2637.9,2637.5,3.7914]
[1724264437165,2.4351,2637.8,2637.4,3.79161]
[1724264437329,2.4351,2637.8,2637.5,3.79146]
[1724264437954,2.4351,2637.7,2637.1,3.79192]
[1724264438137,2.4351,2637.6,2637.1,3.79192]
[1724264438548,3.79133,2637.6,2637.1,3.79192]
[1724264438758,2.4351,2637.5,2636.9,3.79223]
[1724264439097,2.2774,2637.2,2636.8,3.79241]
[1724264439379,2.2774,2637.2,2636.9,3.79232]
[1724264439523,2.2774,2637.2,2636.7,7.58501]
[1724264439723,2.2774,2637.2,2636.9,3.79232]
[1724264440920,2.2774,2637.2,2637.1,3.79204]
[1724264441126,2.2774,2637.2,2637.1,7.58408]
[1724264442757,2.2774,2637.2,2637.1,3.79204]
[1724264443341,2.2774,2637.2,2637.1,7.58408]
[1724264443543,16.673725,2637.8,2637.1,7.58408]
[1724264443544,2.2835,2637.8,2637.5,3.79136]
[1724264443830,2.2835,2637.8,2637.4,3.7916]
[1724264444171,2.81185,2637.8,2637.4,3.7916]
[1724264444325,2.2835,2637.8,2637.5,3.79146]
[1724264444530,2.2835,2637.8,2637.6,3.79131]
[1724264444927,2.2835,2637.8,2637.4,7.583]
[1724264445134,2.2835,2637.8,2637.4,3.79146]
[1724264445339,2.4102,2637.7,2637.3,3.79171]
[1724264446230,2.4102,2637.7,2637.4,3.79153]
[1724264447078,2.4102,2637.7,2637.6,3.79132]
[1724264447442,2.3759,2638.0,2637.8,3.79101]
[1724264447645,6.16665,2638.0,2637.4,3.79157]
[1724264447868,6.16665,2638.0,2637.2,3.79178]
[1724264447869,2.3759,2637.9,2637.2,3.79178]
[1724264448070,0.98147397,2638.0,2636.8,6.878]
[1724264448071,2.3759,2637.7,2636.8,6.878]
[1724264448346,2.3759,2637.7,2637.2,3.79176]
[1724264448658,2.61349,2637.7,2637.2,3.79176]
[1724264448852,2.61349,2637.7,2637.3,3.78904458]
[1724264449680,2.61349,2637.7,2637.3,7.58071458]
[1724264449881,2.61349,2637.7,2637.3,3.78904458]
[1724264450043,2.61349,2637.7,2637.3,7.58071458]
[1724264450248,2.61349,2637.7,2637.3,3.78904458]
[1724264450443,2.4,2637.5,2637.3,3.78904458]
[1724264450895,2.4,2637.5,2637.2,3.79181]
[1724264451064,2.4,2637.5,2637.3,3.79171]
[1724264451261,2.4,2637.5,2637.2,3.79181]
[1724264451586,2.4,2637.5,2637.4,3.79161]
[1724264452552,2.4,2637.5,2637.4,7.58322]
[1724264452754,7.43883967,2637.8,2637.4,7.58322]
[1724264452755,7.43883967,2637.8,2637.7,7.58236]
[1724264452986,9.69463967,2637.8,2637.7,7.58236]
[1724264453667,2.2558,2638.3,2638.2,3.79045]
[1724264453852,2.3874,2638.6,2637.9,3.878]
[1724264454190,2.3874,2638.6,2638.5,7.57994]
[1724264454391,7.43883967,2638.8,2638.7,3.78974]
[1724264455408,7.43883967,2638.8,2638.6,3.78986]
[1724264455898,2.3874,2638.9,2638.6,7.57965]
[1724264456102,2.3874,2638.9,2638.6,3.78979]
[1724264456451,2.3874,2638.9,2638.6,7.57958]
[1724264456746,2.3874,2638.9,2638.6,7.57957]
[1724264456949,2.3874,2638.9,2638.6,3.78978]
[1724264457161,2.3874,2638.9,2638.5,3.78996]
[1724264457690,2.3874,2638.9,2638.6,3.78985]
[1724264458007,2.3874,2638.9,2638.4,7.58018]
[1724264458548,2.3874,2638.9,2638.5,3.79001]
[1724264458819,2.3874,2638.9,2638.4,3.79015]
[1724264459355,2.3874,2638.9,2638.6,3.78977]
[1724264460075,2.3874,2638.9,2638.8,3.7896]
[1724264460702,25.46993216,2639.5,2638.8,3.7896]
[1724264460703,2.4737,2639.4,2638.8,3.7896]
[1724264461019,1.98244249,2639.7,2638.4,1.9328]
[1724264461222,2.50591879,2640.0,2639.7,11.3649]
[1724264461223,0.04964249,2639.8,2639.7,11.3649]
[1724264461442,1.42236399,2640.2,2639.7,5.07138365]
[1724264461593,1.42236399,2640.2,2640.1,7.57546]
[1724264461968,1.42236399,2640.2,2640.1,11.45346]
[1724264462166,0.005,2640.6,2640.5,7.57432]
[1724264462424,0.005,2640.6,2640.5,11.45232]
[1724264462636,0.005,2640.6,2640.5,12.73232]
[1724264462924,0.005,2640.6,2640.5,11.91148]
[1724264463236,0.005,2640.6,2640.5,3.0]
[1724264463530,0.005,2640.6,2640.4,7.5745]
[1724264463811,0.005,2640.6,2640.2,3.0]
[1724264463981,2.2885,2640.5,2640.3,3.78741]
[1724264464366,2.2885,2640.5,2639.9,3.78799]
[1724264464527,2.2885,2640.5,2640.2,3.78754]
[1724264464724,2.51785,2640.5,2639.6,3.78833]
[1724264465035,2.51785,2640.5,2639.9,3.78798]
[1724264465548,3.0,2640.4,2639.5,4.96982]
[1724264465726,2.3867,2640.3,2639.5,1.1813]
[1724264466072,2.938485,2640.3,2639.6,3.78836]
[1724264466299,2.938485,2640.3,2639.5,4.96987]
[1724264466639,2.938485,2640.3,2639.7,3.78827]
[1724264466856,2.3867,2640.3,2639.8,3.78814]
[1724264467072,0.005,2640.6,2639.5,0.5889]
[1724264467073,0.005,2640.6,2640.4,3.78725]
[1724264467607,0.005,2640.6,2640.4,7.57453]
[1724264467715,2.4232,2641.5,2641.4,3.78587]
[1724264468019,2.4232,2641.9,2641.7,3.78541]
[1724264468220,2.4232,2641.9,2641.6,3.78557]
[1724264468472,2.4232,2641.9,2641.5,3.7857]
[1724264468671,2.4232,2641.9,2641.4,3.78578]
[1724264469018,2.4232,2641.9,2641.1,3.78626]
[1724264469261,3.78558,2641.6,2640.6,3.7869]
[1724264469465,2.2981,2641.5,2640.7,3.78673]
[1724264469629,2.2981,2641.5,2641.0,3.78637]
[1724264469958,2.52791,2641.5,2640.7,3.78678]
[1724264470159,2.52791,2641.5,2640.4,3.78725]
[1724264470160,2.52791,2641.5,2640.4,3.78716]
[1724264470333,2.52791,2641.5,2640.1,3.78761]
[1724264470334,3.78645,2641.0,2640.1,3.78761]
[1724264470535,2.3596,2641.2,2639.8,4.48806]
[1724264470733,2.3596,2641.2,2640.2,3.78756]
[1724264471041,2.3596,2641.0,2640.1,3.78772]
[1724264471237,2.3596,2641.0,2639.9,3.788]
[1724264471453,3.78673,2640.8,2639.9,3.788]
[1724264471768,3.78673,2640.8,2639.0,3.78922]
[1724264471769,2.4239,2640.8,2639.5,1.23354544]
[1724264471920,2.96629,2640.8,2640.0,3.78787]
[1724264472353,2.96629,2640.8,2639.8,3.78814]
[1724264472354,2.4239,2640.8,2640.5,3.78714]
[1724264472883,2.4239,2640.8,2640.0,3.78784]
[1724264473178,2.4239,2640.8,2640.1,3.78768]
[1724264473537,2.4239,2640.8,2640.2,3.78757]
[1724264473923,2.4239,2640.8,2640.0,0.7]
[1724264474123,3.0,2641.2,2640.3,0.7]
[1724264474124,2.4142,2641.2,2640.3,0.7]
[1724264474535,0.1269878,2642.6,2640.7,0.7]
[1724264474536,2.2902,2641.6,2640.7,0.7]
[1724264474764,2.2902,2641.6,2641.4,3.78585]
[1724264475181,2.2902,2641.6,2641.2,3.78614]
[1724264475497,2.51922,2641.6,2640.7,7.16743]
[1724264475676,2.51922,2641.6,2640.5,1.0807]
[1724264475882,2.2902,2641.6,2641.0,3.7864]
[1724264476064,2.2902,2641.6,2640.6,1.0807]
[1724264476263,2.2902,2641.6,2640.6,0.3807]
[1724264476447,2.2902,2641.6,2640.8,3.7867]
[1724264478589,2.2902,2640.8,2640.1,3.78771]
[1724264478991,2.2902,2640.8,2640.2,0.7]
[1724264479159,3.0,2641.5,2640.2,0.7]
[1724264479160,2.4586,2641.5,2640.7,3.78684]
[1724264479358,2.4586,2641.5,2640.5,5.858]
[1724264479513,2.4586,2641.5,2641.0,3.78638]
[1724264479894,2.4586,2641.5,2641.1,3.78626]
[1724264480144,2.4586,2641.5,2641.0,3.78638]
[1724264480453,2.4586,2641.5,2641.2,3.78604]
[1724264480613,2.4586,2641.5,2641.0,3.78643]
[1724264480817,2.4586,2641.5,2640.9,3.78656]
[1724264481140,2.4586,2641.5,2640.7,3.78687]
[1724264481340,2.4586,2641.5,2641.4,7.57174]
[1724264481547,2.4586,2641.5,2641.4,3.78587]
[1724264481841,2.4586,2641.5,2641.0,3.78642]
[1724264482346,2.4586,2641.5,2640.5,6.78706]
[1724264482347,2.70446,2641.5,2640.7,3.78684]
[1724264482549,2.70446,2641.5,2640.6,3.78696]
[1724264482841,2.70446,2641.5,2640.4,3.78725]
[1724264482842,2.4263,2641.1,2640.4,3.78725]
[1724264483065,2.4263,2641.1,2640.6,3.78699]
[1724264483516,2.4263,2641.1,2640.4,3.78724]
[1724264483719,2.4669,2641.0,2640.4,3.78724]
[1724264484250,2.4669,2640.9,2640.2,3.78752]
[1724264484758,2.4669,2640.9,2640.4,3.78721]
[1724264485325,0.24263,2641.1,2640.0,3.78781]
[1724264485326,6.21948,2640.7,2640.0,3.78781]
[1724264485557,6.21948,2640.7,2639.3,5.858]
[1724264485558,2.4326,2640.4,2639.1,0.3807]
[1724264485869,2.4326,2640.0,2639.5,3.78856]
[1724264486031,2.4326,2640.0,2639.3,3.78879]
[1724264486032,3.054636,2640.0,2639.3,3.78879]
[1724264486235,2.4326,2640.0,2639.5,3.78859]
[1724264486466,2.2781,2640.5,2639.2,3.78896]
[1724264486639,5.158,2640.6,2638.0,11.28067]
[1724264486640,6.06666,2639.6,2638.8,3.78946]
[1724264486853,3.78766,2640.2,2638.6,3.78984]
[1724264486854,2.2781,2639.1,2638.6,3.78984]
[1724264487254,2.2781,2639.1,2638.4,3.79008]
[1724264487585,6.0673,2639.1,2638.4,3.79008]
[1724264487757,6.0673,2639.1,2638.3,3.79028]
[1724264487758,3.78932,2639.0,2638.3,3.79028]
[1724264488262,2.2781,2639.1,2638.3,3.79028]
[1724264488263,2.2781,2639.1,2638.8,3.78959]
[1724264488424,2.2781,2639.1,2638.6,3.78979]
[1724264489023,2.2781,2639.1,2639.0,3.78931]
[1724264489320,2.2781,2639.1,2638.9,3.78933]
[1724264489557,2.2781,2639.1,2639.0,3.78931]
[1724264489760,2.2781,2639.1,2638.8,3.78947]
[1724264489963,2.2781,2639.1,2638.4,0.7]
[1724264490117,2.2781,2639.1,2638.9,3.78935]
[1724264491878,2.2781,2639.1,2638.7,3.78973]
[1724264492088,2.2781,2639.1,2638.5,3.78997]
[1724264492658,2.2781,2639.1,2638.5,7.57985]
[1724264492858,3.78933,2639.0,2638.4,3.79015]
[1724264493062,2.2768,2638.9,2638.3,6.79024]
[1724264493271,2.2768,2638.9,2638.5,3.78998]
[1724264493679,2.2768,2638.9,2638.6,3.78988]
[1724264493939,2.2768,2638.9,2638.8,3.7896]
[1724264494497,2.2768,2638.9,2638.7,3.7896]
[1724264495377,2.2768,2638.9,2638.3,6.79026]
[1724264495378,2.2768,2638.9,2638.5,3.78997]
[1724264495717,2.2768,2638.9,2638.3,10.58046]
[1724264495945,6.672947,2638.9,2638.3,3.79021]
[1724264496246,6.672947,2638.9,2637.9,3.79082]
[1724264496247,3.7899,2638.6,2637.9,3.79082]
[1724264496525,3.7899,2638.6,2637.7,4.2835706]
[1724264496526,2.3384,2638.1,2637.5,3.79144]
[1724264496687,2.3384,2638.1,2637.5,3.79136]
[1724264496896,2.3384,2638.1,2637.6,3.7912]
[1724264497091,2.3384,2638.1,2637.5,3.79139]
[1724264497332,2.57224,2638.1,2637.5,3.79138]
[1724264497625,2.57224,2638.1,2637.1,4.2844006]
[1724264497626,2.57224,2638.1,2637.3,3.79166]
[1724264497864,3.79075,2638.0,2637.3,3.79163]
[1724264498578,2.57224,2638.1,2637.5,3.79136]
[1724264498778,2.57224,2638.1,2637.7,3.79117]
[1724264499027,2.57224,2638.1,2637.9,3.7908]
[1724264499028,2.3384,2638.1,2637.9,3.7908]
[1724264499712,2.3384,2638.1,2637.7,3.79117]
[1724264500243,2.3384,2638.1,2637.5,3.79142]
[1724264500443,2.3384,2638.1,2637.3,3.79168]
[1724264500732,2.3384,2638.1,2637.3,3.79165]
[1724264500733,3.79088,2638.0,2637.3,3.79165]
[1724264500931,2.951289,2638.1,2637.3,3.79165]
[1724264501224,2.951289,2638.1,2637.5,3.79146]
[1724264502018,2.951289,2638.1,2637.3,3.79165]
[1724264502183,1.41806187,2638.0,2637.3,3.79165]
[1724264502379,1.41806187,2638.0,2637.1,3.79199]
[1724264502380,2.4228,2637.7,2637.1,3.79199]
[1724264503129,2.4228,2637.6,2637.1,3.79199]
[1724264503678,3.79164,2637.4,2636.8,3.79239]
[1724264503883,2.4228,2637.3,2636.8,3.79239]
[1724264504119,2.4228,2637.3,2636.7,3.79255]
[1724264504285,2.4228,2637.3,2636.7,3.79258]
[1724264504829,2.4228,2637.3,2636.7,7.58511]
[1724264505036,2.4228,2637.3,2636.7,3.79253]
[1724264505175,3.1200737,2637.3,2636.7,3.79253]
[1724264505382,3.1200737,2637.3,2636.8,3.79236]
[1724264506273,6.9119537,2637.3,2636.7,3.79253]
[1724264506532,3.7919,2637.2,2636.7,3.79253]
[1724264506855,3.1200737,2637.3,2636.3,3.79311]
[1724264506856,6.21502,2637.0,2636.3,3.79311]
[1724264507010,6.21502,2637.0,2635.9,3.79374]
[1724264507011,2.4228,2636.6,2635.9,3.79374]
[1724264507351,2.4228,2636.6,2635.9,3.79368]
[1724264507352,2.4228,2636.3,2635.9,3.79368]
[1724264507489,2.4228,2636.3,2635.9,3.79366]
[1724264507685,2.4228,2636.3,2636.2,3.79333]
[1724264507956,2.4228,2636.3,2636.2,7.58666]
[1724264508145,0.6972737,2637.3,2636.7,3.7926]
[1724264508349,0.6972737,2637.3,2636.5,3.79279]
[1724264508350,0.74889837,2637.2,2636.5,3.79278]
[1724264508625,0.74889837,2637.2,2636.1,3.79341]
[1724264508626,2.2587,2637.1,2636.2,3.79329]
[1724264508849,2.2587,2637.1,2636.7,3.79261]
[1724264509002,2.2587,2637.1,2636.5,3.79279]
[1724264509541,3.23865884,2637.1,2636.5,3.79279]
[1724264509754,2.2758,2637.0,2636.5,3.79279]
[1724264510247,2.2758,2637.0,2636.3,3.79306]
[1724264510391,2.2758,2637.0,2636.4,3.79301]
[1724264510904,2.2758,2637.0,2635.7,3.0]
[1724264510905,6.06828,2636.8,2636.1,3.79336]
[1724264511248,2.2758,2636.6,2636.1,3.79336]
[1724264511392,2.2758,2636.6,2636.1,7.58676]
[1724264511594,2.2758,2636.6,2636.1,3.79336]
[1724264511828,2.2758,2636.6,2636.3,3.79316]
[1724264512099,2.2758,2636.6,2636.5,3.7929]
[1724264512296,2.2758,2636.6,2636.3,3.79308]
[1724264512795,2.2758,2636.6,2636.3,3.79307]
[1724264513026,2.2758,2636.6,2635.7,3.3807]
[1724264513027,2.2758,2636.6,2635.7,6.794]
[1724264513189,2.2758,2636.6,2635.4,0.3807]
[1724264513190,2.4683,2636.4,2635.9,3.79369]
[1724264513818,2.4683,2636.4,2635.9,3.79376]
[1724264513994,2.4683,2636.4,2635.8,3.79387]
[1724264513995,6.26138,2636.4,2635.8,3.79387]
[1724264514208,2.4014,2636.3,2635.8,3.79387]
[1724264514564,2.4014,2636.3,2635.4,4.17515]
[1724264514565,2.4014,2636.3,2635.9,3.79365]
[1724264514739,2.4014,2636.3,2636.1,3.79344]
[1724264515048,2.4014,2636.3,2635.7,3.79399]
[1724264515049,2.4014,2636.2,2635.7,3.79399]
[1724264515242,2.4014,2636.2,2635.5,3.7942]
[1724264515411,2.4014,2636.2,2635.6,3.79412]
[1724264515737,0.24014,2636.3,2635.3,3.79455]
[1724264515940,5.38558,2636.6,2635.2,4.38182465]
[1724264515941,2.4014,2635.9,2635.2,4.38182465]
[1724264516096,6.0617,2635.8,2635.2,0.58717465]
[1724264516297,2.2677,2635.7,2635.2,0.58717465]
[1724264516722,2.2677,2635.5,2635.2,0.58717465]
[1724264517249,2.2677,2635.5,2634.9,3.79517]
[1724264517452,2.49447,2635.5,2634.9,3.79517]
[1724264518000,2.49447,2635.5,2635.1,3.79492]
[1724264518205,2.49447,2635.5,2634.1,0.46161726]
[1724264518206,2.2677,2635.5,2635.4,3.79449]
[1724264518437,2.2677,2635.5,2635.4,7.58898]
[1724264519007,2.2677,2635.5,2635.4,3.79449]
[1724264519820,2.2677,2635.5,2635.4,7.58898]
[1724264520014,2.2677,2635.5,2635.4,3.79449]
[1724264520444,2.2677,2635.5,2635.4,7.58898]
[1724264520662,2.2677,2636.0,2635.7,3.79395]
[1724264520998,2.2677,2636.0,2635.9,3.79377]
[1724264521202,2.2677,2636.0,2635.9,7.58754]
[1724264522528,2.3769,2636.3,2636.2,3.79333]
[1724264522825,2.3769,2636.3,2636.2,7.58666]
[1724264523025,2.3769,2636.7,2636.5,3.79286]
[1724264523522,2.3769,2636.7,2636.3,7.58623]
[1724264523702,2.3769,2636.7,2636.1,3.79337]
[1724264523903,2.3769,2636.6,2636.1,3.79337]
[1724264524103,2.3769,2636.6,2636.3,3.79312]
[1724264524798,2.3769,2636.6,2636.1,3.79339]
[1724264524959,2.3769,2636.6,2635.9,7.58741]
[1724264525159,2.3769,2636.6,2635.9,3.79367]
[1724264525403,2.61459,2636.6,2635.9,3.79367]
[1724264525558,2.4347,2636.5,2635.7,3.794]
[1724264526078,2.4347,2636.5,2635.7,3.79396]
[1724264526283,2.4347,2636.4,2635.5,7.58853]
[1724264526622,2.4268,2636.1,2635.3,3.79452]
[1724264527081,2.4268,2636.0,2635.3,3.79452]
[1724264527283,2.4268,2636.0,2635.1,3.79483]
[1724264527458,2.4268,2636.0,2635.7,3.79405]
[1724264527660,2.4268,2636.0,2635.9,3.79377]
[1724264527916,2.4268,2636.0,2635.9,7.58754]
[1724264528496,3.0,2636.8,2636.3,3.7931]
[1724264528497,7.43883967,2636.8,2636.3,3.7931]
[1724264528973,8.18272364,2636.8,2635.5,3.7943]
[1724264529308,8.18272364,2636.8,2635.3,3.0]
[1724264529309,3.79279,2636.6,2635.8,3.7939]
[1724264529985,3.79279,2636.6,2635.6,3.79417]
[1724264530182,3.7931,2636.4,2635.6,3.79417]
[1724264530393,0.813613,2636.3,2635.6,3.79412]
[1724264530576,3.0,2636.4,2635.8,3.79388]
[1724264531070,0.55,2636.5,2635.8,3.79388]
[1724264531270,0.55,2636.5,2635.7,3.79403]
[1724264531473,2.4425,2636.0,2635.2,3.79471]
[1724264531789,2.4425,2635.8,2635.2,3.79471]
[1724264532565,2.4425,2635.8,2635.0,3.79496]
[1724264532874,2.4425,2635.8,2634.7,3.79546]
[1724264532875,2.4118,2635.4,2634.7,3.79546]
[1724264533149,2.4118,2635.4,2634.3,0.3807]
[1724264533150,2.4118,2635.4,2635.2,3.7947]
[1724264533273,2.4118,2635.4,2635.2,3.79468]
[1724264533615,2.4118,2635.4,2635.3,7.58926]
[1724264534008,2.4118,2635.4,2635.3,3.79463]
[1724264534905,2.4118,2635.4,2635.3,7.58926]
[1724264535124,2.4118,2635.4,2635.3,3.79463]
[1724264535888,3.79299,2636.5,2634.9,0.3807]
[1724264535889,2.3434,2636.1,2635.2,3.79474]
[1724264536093,2.3434,2636.1,2635.7,3.79403]
[1724264536287,2.3434,2636.1,2635.3,7.58904]
[1724264536288,2.57774,2636.1,2635.3,7.58904]
[1724264536496,3.79362,2636.0,2635.1,3.79482]
[1724264536738,0.23434,2636.1,2635.3,3.7946]
[1724264536739,2.4518,2635.9,2635.3,3.7946]
[1724264537237,2.4518,2635.9,2635.2,3.79477]
[1724264537545,2.4518,2635.9,2635.4,3.7944]
[1724264537840,2.720414,2635.9,2635.4,3.7944]
[1724264538194,2.4518,2635.9,2635.6,3.79406]
[1724264539043,2.4518,2635.9,2635.8,7.58782]
[1724264539224,2.3727,2636.3,2636.2,7.58659]
[1724264540262,2.3727,2636.3,2636.2,8.18009039]
[1724264540443,2.3727,2636.3,2636.2,7.58659]
[1724264540608,2.3727,2636.3,2636.2,3.79326]
[1724264541042,2.3727,2636.3,2635.5,3.3807]
[1724264541226,2.3727,2636.3,2635.9,3.79367]
[1724264541433,2.3727,2636.3,2636.2,3.79333]
[1724264541641,2.3727,2636.3,2636.0,3.79353]
[1724264542006,2.3727,2636.3,2635.8,3.7938]
[1724264542207,0.23727,2636.2,2635.8,3.7938]
[1724264542454,0.23727,2636.2,2635.6,3.79407]
[1724264542765,0.23727,2636.2,2635.7,0.5935899]
[1724264543083,2.2658,2636.1,2635.7,3.79405]
[1724264543383,2.2658,2636.1,2635.6,3.79407]
[1724264543580,2.516107,2636.1,2635.6,3.79407]
[1724264543719,2.516107,2636.1,2635.7,3.74397]
[1724264544069,2.516107,2636.1,2635.8,3.79381]
[1724264544070,2.2658,2636.1,2635.8,3.79381]
[1724264544373,2.2658,2636.1,2635.6,3.79418]
[1724264544733,2.2658,2636.1,2635.8,3.79389]
[1724264544920,2.2658,2636.1,2635.2,0.3807]
[1724264544921,2.2658,2636.1,2636.0,3.79362]
[1724264545123,9.85133967,2636.4,2636.3,3.79319]
[1724264545315,9.85133967,2636.4,2636.3,7.58638]
[1724264545542,9.85133967,2636.4,2636.1,3.79334]
[1724264545870,10.83647364,2636.4,2636.1,3.79338]
[1724264546080,9.85133967,2636.4,2636.1,7.58676]
[1724264546388,9.85133967,2636.4,2635.9,7.58733]
[1724264546521,9.85133967,2636.4,2635.9,3.79364]
[1724264546868,0.98513397,2636.3,2635.9,3.79364]
[1724264547167,2.4125,2636.2,2635.9,3.79364]
[1724264547483,2.4125,2636.2,2635.7,3.79394]
[1724264547616,2.4125,2636.2,2635.9,3.79369]
[1724264548627,2.4125,2636.2,2635.7,3.79403]
[1724264548827,3.39763397,2636.2,2635.2,0.94967731]
[1724264549021,3.39763397,2636.2,2635.7,3.79397]
[1724264549235,3.39763397,2636.2,2635.7,3.79395]
[1724264549486,3.39763397,2636.2,2635.7,7.58792]
[1724264549682,2.3404,2636.1,2635.1,0.84231726]
[1724264549858,2.3404,2636.1,2635.2,3.79475]
[1724264549859,2.6729534,2636.0,2635.2,3.79475]